fUSD/lending_fUSD_20240618
["ID","MTS","AMOUNT","RATE_DAILY","PERIOD"]
[329801305,1718681462571,-500.0,0.00021917,2]
[329801306,1718681462581,-2378.34,0.00021917,2]
[329801307,1718681462590,-500.0,0.00021917,2]
[329801308,1718681462599,-151.0,0.00021917,2]
[329801309,1718681462608,-151.0,0.00021917,2]
[329801310,1718681462618,-500.0,0.00021917,2]
[329801311,1718681462627,-158.772272,0.00021917,2]
[329801312,1718681462637,-786.38,0.00021917,2]
[329801313,1718681462647,-151.0,0.00021917,2]
[329801314,1718681462656,-151.0,0.00021917,2]
[329801315,1718681462665,-151.0,0.00021917,2]
[329801316,1718681462674,-500.0,0.00021917,2]
[329801317,1718681462683,-151.0,0.00021917,2]
[329801318,1718681462693,-4004.4,0.00021917,2]
[329801319,1718681462702,-151.0,0.00021917,2]
[329801320,1718681462713,-151.0,0.00021917,2]
[329801321,1718681462723,-7396.54,0.00021917,2]
[329801322,1718681462733,-500.0,0.00021917,2]
[329801323,1718681462743,-500.0,0.00021917,2]
[329801324,1718681462754,-2335.78,0.00021917,2]
[329801325,1718681462764,-500.0,0.00021917,2]
[329801326,1718681462774,-151.0,0.00021917,2]
[329801327,1718681462784,-151.0,0.00021917,2]
[329801328,1718681462793,-2037.79,0.00021917,2]
[329801329,1718681462802,-500.0,0.00021917,2]
[329801330,1718681462812,-151.0,0.00021917,2]
[329801331,1718681462821,-500.0,0.00021917,2]
[329801332,1718681462831,-151.0,0.00021917,2]
[329801333,1718681462840,-151.0,0.00021917,2]
[329801334,1718681462849,-151.0,0.00021917,2]
[329801335,1718681462859,-250.0,0.00021917,2]
[329801336,1718681462868,-151.0,0.00021917,2]
[329801337,1718681462878,-151.0,0.00021917,2]
[329801338,1718681462887,-151.0,0.00021917,2]
[329801339,1718681462897,-151.0,0.00021917,2]
[329801340,1718681462907,-500.0,0.00021917,2]
[329801341,1718681462920,-159.843028,0.00021917,2]
[329801342,1718681462930,-2353.15,0.00021917,2]
[329801343,1718681462939,-151.0,0.00021917,2]
[329801344,1718681462948,-2422.68,0.00021917,2]
[329801345,1718681462957,-1005.2,0.00021917,2]
[329801346,1718681462968,-2132.71,0.00021917,2]
[329801347,1718681462977,-500.0,0.00021917,2]
[329801348,1718681462986,-151.366086,0.00021917,2]
[329801349,1718681462997,-500.0,0.00021917,2]
[329801350,1718681463007,-2212.31,0.00021917,2]
[329801351,1718681463016,-2506.64,0.00021917,2]
[329801352,1718681463026,-2005.24,0.00021917,2]
[329801353,1718681463036,-565.18,0.00021917,2]
[329801354,1718681463045,-500.0,0.00021917,2]
[329801355,1718681463055,-688.61,0.00021917,2]
[329801356,1718681463064,-4486.97,0.00021917,2]
[329801357,1718681463073,-500.0,0.00021917,2]
[329801358,1718681463083,-1033.81,0.00021917,2]
[329801359,1718681463092,-7965.94,0.00021917,2]
[329801360,1718681463102,-1960.86,0.00021917,2]
[329801361,1718681463112,-500.0,0.00021917,2]
[329801362,1718681463121,-1730.49,0.00021917,2]
[329801363,1718681463131,-2595.78,0.00021917,2]
[329801364,1718681463140,-500.0,0.00021917,2]
[329801365,1718681463150,-500.0,0.00021917,2]
[329801366,1718681463159,-151.272795,0.00021917,2]
[329801367,1718681463168,-500.0,0.00021917,2]
[329801368,1718681463178,-683.79,0.00021917,2]
[329801369,1718681463187,-500.0,0.00021917,2]
[329801370,1718681463197,-551.73,0.00021917,2]
[329801371,1718681463206,-500.0,0.00021917,2]
[329801372,1718681463217,-151.998203,0.00021917,2]
[329801373,1718681463226,-3132.02,0.00021917,2]
[329801374,1718681463235,-500.0,0.00021917,2]
[329801375,1718681463244,-1292.46,0.00021917,2]
[329801376,1718681463253,-773.37,0.00021917,2]
[329801377,1718681463262,-151.0,0.00021917,2]
[329801378,1718681463272,-4740.01,0.00021917,2]
[329801379,1718681463282,-500.0,0.00021917,2]
[329801380,1718681463291,-151.0,0.00021917,2]
[329801381,1718681463300,-8443.15,0.00021917,2]
[329801382,1718681463309,-151.0,0.00021917,2]
[329801383,1718681463319,-500.0,0.00021917,2]
[329801384,1718681463328,-500.0,0.00021917,2]
[329801385,1718681463338,-4289.29,0.00021917,2]
[329801386,1718681463347,-155.196069,0.00021917,2]
[329801387,1718681463357,-500.0,0.00021917,2]
[329801388,1718681463366,-2184.91,0.00021917,2]
[329801389,1718681463375,-500.0,0.00021917,2]
[329801390,1718681463385,-1841.36,0.00021917,2]
[329801391,1718681463394,-1169.28,0.00021917,2]
[329801392,1718681463404,-500.0,0.00021917,2]
[329801393,1718681463414,-3494.42,0.00021917,2]
[329801394,1718681463423,-151.0,0.00021917,2]
[329801395,1718681463432,-151.0,0.00021917,2]
[329801396,1718681463442,-500.0,0.00021917,2]
[329801397,1718681463451,-500.0,0.00021917,2]
[329801398,1718681463461,-151.0,0.00021917,2]
[329801399,1718681463472,-151.0,0.00021917,2]
[329801400,1718681463481,-320.46445595,0.00021917,2]
[329801401,1718681463490,-500.0,0.00021917,2]
[329801402,1718681463499,-1607.18,0.00021917,2]
[329801403,1718681463509,-151.0,0.00021917,2]
[329801404,1718681463518,-500.0,0.00021917,2]
[329801405,1718681463527,-500.0,0.00021917,2]
[329801406,1718681463537,-151.0,0.00021917,2]
[329801407,1718681463546,-500.0,0.00021917,2]
[329801408,1718681463556,-151.0,0.00021917,2]
[329801409,1718681463565,-151.0,0.00021917,2]
[329801410,1718681463575,-151.0,0.00021917,2]
[329801411,1718681463584,-151.0,0.00021917,2]
[329801412,1718681463593,-4678.37,0.00021917,2]
[329801413,1718681463603,-500.0,0.00021917,2]
[329801414,1718681463612,-500.0,0.00021917,2]
[329801415,1718681463622,-500.0,0.00021917,2]
[329801416,1718681463631,-1939.17,0.00021917,2]
[329801417,1718681463641,-18683.96,0.00021917,2]
[329801418,1718681463650,-511.95290341,0.00021917,2]
[329801419,1718681463659,-10829.56,0.00021917,2]
[329801420,1718681463670,-1066.49,0.00021917,2]
[329801421,1718681463679,-151.0,0.00021917,2]
[329801422,1718681463688,-1153.46,0.00021917,2]
[329801423,1718681463698,-500.0,0.00021917,2]
[329801424,1718681463707,-155.298904,0.00021917,2]
[329801425,1718681463719,-333.60835069,0.00021917,2]
[329801426,1718681463728,-500.0,0.00021917,2]
[329801427,1718681463738,-500.0,0.00021917,2]
[329801428,1718681463747,-500.0,0.00021917,2]
[329801429,1718681463756,-500.0,0.00021917,2]
[329801430,1718681463766,-500.0,0.00021917,2]
[329801431,1718681463775,-3128.37,0.00021917,2]
[329801432,1718681463784,-4429.01,0.00021917,2]
[329801433,1718681463794,-616.85227781,0.00021917,2]
[329801434,1718681463803,-500.0,0.00021917,2]
[329801435,1718681463812,-500.0,0.00021917,2]
[329801436,1718681463821,-500.0,0.00021917,2]
[329801437,1718681463831,-598.36,0.00021917,2]
[329801438,1718681463840,-26302.01,0.00021917,2]
[329801439,1718681463849,-500.0,0.00021917,2]
[329801440,1718681463858,-500.0,0.00021917,2]
[329801441,1718681463868,-1945.41,0.00021917,2]
[329801442,1718681463877,-151.0,0.00021917,2]
[329801443,1718681463887,-591.48894635,0.00021917,2]
[329801444,1718681463896,-33817.19,0.00021917,2]
[329801445,1718681463909,-151.0,0.00021917,2]
[329801446,1718681463919,-151.0,0.00021917,2]
[329801447,1718681463929,-151.0,0.00021917,2]
[329801448,1718681463938,-151.0,0.00021917,2]
[329801449,1718681463948,-500.0,0.00021917,2]
[329801450,1718681463957,-200.822835,0.00021917,2]
[329801451,1718681463970,-373.512919,0.00021917,2]
[329801452,1718681463979,-198.27,0.00021918,2]
[329801453,1718681463990,-1000.0,0.00021918,2]
[329801454,1718681463999,-1000.0,0.00021918,2]
[329801455,1718681464010,-1000.0,0.00021918,2]
[329801456,1718681464019,-1000.0,0.00021918,2]
[329801457,1718681464028,-1000.0,0.00021918,2]
[329801458,1718681464038,-1000.0,0.00021918,2]
[329801459,1718681464047,-1000.0,0.00021918,2]
[329801460,1718681464057,-1000.0,0.00021918,2]
[329801461,1718681464068,-1000.0,0.00021918,2]
[329801462,1718681464078,-1000.0,0.00021918,2]
[329801463,1718681464088,-1000.0,0.00021918,2]
[329801464,1718681464097,-1000.0,0.00021918,2]
[329801465,1718681464107,-1000.0,0.00021918,2]
[329801466,1718681464116,-1000.0,0.00021918,2]
[329801467,1718681464125,-1000.0,0.00021918,2]
[329801468,1718681464134,-1000.0,0.00021918,2]
[329801469,1718681464143,-1000.0,0.00021918,2]
[329801470,1718681464153,-1000.0,0.00021918,2]
[329801471,1718681464162,-1000.0,0.00021918,2]
[329801472,1718681464171,-1000.0,0.00021918,2]
[329801473,1718681464180,-1000.0,0.00021918,2]
[329801474,1718681464190,-1000.0,0.00021918,2]
[329801475,1718681464199,-1000.0,0.00021918,2]
[329801476,1718681464208,-1000.0,0.00021918,2]
[329801477,1718681464219,-1000.0,0.00021918,2]
[329801478,1718681464228,-1000.0,0.00021918,2]
[329801479,1718681464237,-1000.0,0.00021918,2]
[329801480,1718681464246,-1000.0,0.00021918,2]
[329801481,1718681464254,-1000.0,0.00021918,2]
[329801482,1718681464263,-1000.0,0.00021918,2]
[329801483,1718681464272,-1000.0,0.00021918,2]
[329801484,1718681464281,-1000.0,0.00021918,2]
[329801485,1718681464291,-1000.0,0.00021918,2]
[329801486,1718681464300,-1000.0,0.00021918,2]
[329801487,1718681464310,-1000.0,0.00021918,2]
[329801488,1718681464319,-1000.0,0.00021918,2]
[329801489,1718681464328,-1000.0,0.00021918,2]
[329801490,1718681464337,-1000.0,0.00021918,2]
[329801491,1718681464347,-1000.0,0.00021918,2]
[329801492,1718681464357,-1000.0,0.00021918,2]
[329801493,1718681464366,-1000.0,0.00021918,2]
[329801494,1718681464375,-1000.0,0.00021918,2]
[329801495,1718681464385,-1000.0,0.00021918,2]
[329801496,1718681464395,-1000.0,0.00021918,2]
[329801497,1718681464405,-1053.0,0.00021918,2]
[329801498,1718681464414,-1000.0,0.00021918,2]
[329801499,1718681464423,-1000.0,0.00021918,2]
[329801500,1718681464432,-1000.0,0.00021918,2]
[329801501,1718681464441,-1000.0,0.00021918,2]
[329801502,1718681464451,-1000.0,0.00021918,2]
[329801503,1718681464459,-1026.0,0.00021918,2]
[329801504,1718681464471,-245.38,0.00021918,2]
[329801505,1718681464479,-151.0,0.00021918,2]
[329801506,1718681464489,-152.601233,0.00021918,2]
[329801507,1718681464498,-151.499119,0.00021918,2]
[329801508,1718681464507,-151.0,0.00021918,7]
[329801509,1718681464517,-281.342928,0.00021918,7]
[329801510,1718681464526,-151.0,0.00021918,7]
[329801511,1718681464536,-151.0,0.00021918,7]
[329801512,1718681464546,-151.0,0.00021918,7]
[329801513,1718681464559,-151.0,0.00021918,7]
[329801514,1718681464568,-265.555766,0.00021918,7]
[329801515,1718681464578,-265.555766,0.00021918,7]
[329801516,1718681464587,-153.0128,0.00021918,7]
[329801517,1718681464597,-220.472523,0.00021918,7]
[329801518,1718681464606,-220.472523,0.00021918,7]
[329801519,1718681464616,-440.05,0.0002192,2]
[329801520,1718681464626,-440.05,0.0002192,2]
[329801521,1718681464635,-440.05,0.0002192,2]
[329801522,1718681464644,-440.05,0.0002192,2]
[329801523,1718681464654,-440.05,0.0002192,2]
[329801524,1718681464663,-7386.76,0.00021922,2]
[329801525,1718681464672,-7547.63,0.00021927,2]
[329801526,1718681464682,-565.747237,0.00021927,7]
[329801527,1718681464691,-565.747237,0.00021927,7]
[329801528,1718681464701,-151.0,0.00021927,7]
[329801529,1718681464711,-151.0,0.00021927,7]
[329801530,1718681464722,-151.0,0.00021927,7]
[329801531,1718681464732,-151.0,0.00021927,7]
[329801532,1718681464741,-233.430014,0.00021927,7]
[329801533,1718681464750,-579.65,0.0002199,3]
[329801534,1718681464759,-500.0,0.0002199,3]
[329801535,1718681464949,-152.203408,0.00021991,7]
[329801536,1718681464959,-222.464618,0.00021991,7]
[329801537,1718681464969,-151.0,0.00021991,7]
[329801538,1718681464978,-284.939057,0.00021991,7]
[329801539,1718681464987,-159.625636,0.00021991,7]
[329801540,1718681465000,-151.0,0.00021991,7]
[329801541,1718681465009,-151.0,0.00021991,7]
[329801542,1718681465019,-151.0,0.00021991,7]
[329801543,1718681465029,-152.895368,0.00021991,7]
[329801544,1718681465039,-153.101228,0.00021991,7]
[329801545,1718681465049,-151.0,0.00021991,7]
[329801546,1718681465060,-153.101228,0.00021991,7]
[329801547,1718681465070,-151.0,0.00021991,7]
[329801548,1718681465081,-151.0,0.00021991,7]
[329801549,1718681465091,-151.0,0.00021991,7]
[329801550,1718681465102,-151.0,0.00021991,7]
[329801551,1718681465112,-151.0,0.00021991,7]
[329801552,1718681465121,-151.0,0.00021991,7]
[329801553,1718681465131,-151.0,0.00021991,7]
[329801554,1718681465141,-151.0,0.00021991,7]
[329801555,1718681465151,-155.22599608,0.00022,2]
[329801556,1718681465160,-2837.27151419,0.00022015,2]
[329801557,1718681465169,-151.443993,0.00022041,7]
[329801558,1718681465179,-151.443993,0.00022041,7]
[329801559,1718681465189,-151.0,0.00022041,7]
[329801560,1718681465199,-151.0,0.00022041,7]
[329801561,1718681465208,-160.43127304,0.00022055,5]
[329801562,1718681465222,-151.0,0.00022091,7]
[329801563,1718681465231,-373.705682,0.00022091,7]
[329801564,1718681465243,-151.0,0.00022091,7]
[329801565,1718681465253,-373.705682,0.00022091,7]
[329801566,1718681465263,-151.0,0.00022091,7]
[329801567,1718681465272,-195.778404,0.00022091,7]
[329801568,1718681465282,-195.778404,0.00022091,7]
[329801569,1718681465292,-192.80444479,0.00022091,2]
[329801570,1718681465302,-152.0,0.00022099,4]
[329801571,1718681465312,-151.0,0.00022124,7]
[329801572,1718681465321,-151.0,0.00022124,7]
[329801573,1718681465331,-500.0,0.00022124,2]
[329801574,1718681465340,-173.061811,0.00022144,2]
[329801575,1718681465350,-173.061811,0.00022145,2]
[329801576,1718681465360,-182.061811,0.00022146,2]
[329801577,1718681465370,-181.061811,0.00022147,2]
[329801578,1718681465379,-181.061811,0.00022148,2]
[329801579,1718681465389,-184.0,0.00022161,15]
[329801580,1718681465399,-200.0,0.00022161,2]
[329801581,1718681465408,-160.43127304,0.00022164,5]
[329801582,1718681465417,-255.09,0.00022171,15]
[329801583,1718681465426,-184.0,0.00022171,15]
[329801584,1718681465435,-2518.72730996,0.0002218,2]
[329801585,1718681465445,-220.472523,0.0002218,7]
[329801586,1718681465455,-220.472523,0.0002218,7]
[329801587,1718681465467,-150.5,0.00022181,15]
[329801588,1718681465476,-184.0,0.00022181,15]
[329801589,1718681465485,-156.15221259,0.00022189,2]
[329801590,1718681465494,-500.0,0.00022189,3]
[329801591,1718681465504,-4295.18609637,0.0002219,2]
[329801592,1718681465514,-210.17708337,0.0002219,2]
[329801593,1718681465524,-1100.86997384,0.0002219,2]
[329801594,1718681465533,-83684.91832836,0.0002219,2]
[329801595,1718681466076,-32537.88257596,0.0002219,2]
[329801596,1718681466087,-151.0,0.0002219,7]
[329801597,1718681466096,-151.0,0.0002219,7]
[329801598,1718681466106,-151.0,0.0002219,7]
[329801599,1718681466115,-151.0,0.0002219,7]
[329801600,1718681466125,-151.0,0.0002219,7]
[329801601,1718681466134,-151.0,0.0002219,7]
[329801602,1718681466144,-151.0,0.0002219,7]
[329801603,1718681466153,-579.65,0.0002219,3]
[329801604,1718681466163,-579.65,0.0002219,3]
[329801605,1718681466171,-579.65,0.0002219,3]
[329801606,1718681466181,-565.747237,0.0002219,7]
[329801607,1718681466190,-565.747237,0.0002219,7]
[329801608,1718681466199,-151.0,0.0002219,7]
[329801609,1718681466208,-249.301209,0.0002219,7]
[329801610,1718681466220,-151.0,0.0002219,7]
[329801611,1718681466229,-500.0,0.0002219,3]
[329801612,1718681466238,-500.0,0.0002219,3]
[329801613,1718681466248,-500.0,0.0002219,3]
[329801614,1718681466257,-151.0,0.0002219,7]
[329801615,1718681466267,-265.555766,0.0002219,7]
[329801616,1718681466275,-265.555766,0.0002219,7]
[329801617,1718681466285,-500.0,0.0002219,3]
[329801618,1718681466294,-500.0,0.0002219,3]
[329801619,1718681466303,-500.0,0.0002219,3]
[329801620,1718681466313,-500.0,0.0002219,3]
[329801621,1718681466322,-170.95150643,0.0002219,10]
[329801622,1718681466332,-248909.168213,0.00022191,13]
[329801623,1718681466343,-316.156902,0.00022191,13]
[329801624,1718681466355,-320.35017849,0.00022191,13]
[329801625,1718681466366,-1122.71897986,0.00022191,13]
[329801626,1718681466377,-9367.57070698,0.00022191,13]
[329801627,1718681466388,-939.44452347,0.00022191,13]
[329801628,1718681466399,-160302.79180645,0.00022191,13]
[329801629,1718681466410,-7120.0,0.00022191,13]
[329801630,1718681466421,-24976.40889033,0.00022191,13]
[329801632,1718681466432,-707.66467926,0.00022191,13]
[329801633,1718681466443,-1425.32405303,0.00022191,13]
[329801634,1718681466958,-243.99267899,0.00017259,2]
[329801635,1718681466971,-141.13036851,0.00020884,2]
[329801636,1718681466982,-108.86963149,0.00020884,2]
[329801637,1718681466991,-373.512919,0.00021917,2]
[329801638,1718681467003,-230.72449268,0.00021917,2]
[329801639,1718681467015,-142.78842632,0.00021917,2]
[329801640,1718681467024,-477.75138093,0.00021917,2]
[329801641,1718681467036,-22.24861907,0.00021917,2]
[329801642,1718681467046,-373.512919,0.00021917,2]
[329801643,1718681467055,-373.512919,0.00021917,2]
[329801644,1718681467065,-373.512919,0.00021917,2]
[329801645,1718681467074,-780.99,0.00021917,2]
[329801646,1718681467083,-373.512919,0.00021918,7]
[329801647,1718681467093,-373.512919,0.0002219,7]
[329801648,1718681467103,-954.77014573,0.00022191,13]
[329801649,1718681467115,-1650.24238056,0.00022191,13]
[329801650,1718681467126,-320.96,0.00022191,13]
[329801651,1718681467137,-451.23409272,0.00022191,13]
[329801652,1718681467148,-458.48685973,0.00022191,13]
[329801653,1718681467159,-6657.95335533,0.00022191,13]
[329801654,1718681467170,-3986.99640387,0.00022191,13]
[329801677,1718681970588,458.0,0.00022,30]
[329801678,1718682335842,157.17266045,0.00014997,30]
[329801684,1718682340077,200.0,0.00014922,30]
[329801685,1718682340133,200.0,0.00014922,30]
[329801686,1718682340312,200.0,0.00014922,30]
[329801687,1718682340372,200.0,0.00014922,30]
[329801688,1718682340665,200.0,0.00014922,30]
[329801689,1718682353186,213.17984536,0.00014997,30]
[329801701,1718682474540,200.0,0.00014922,30]
[329801702,1718682474595,200.0,0.00014922,30]
[329801703,1718682474645,200.0,0.00014922,30]
[329801704,1718682474706,200.0,0.00014922,30]
[329801705,1718682474770,200.0,0.00014922,30]
[329801868,1718682608089,200.0,0.00014847,30]
[329801869,1718682608357,200.0,0.00014847,30]
[329801870,1718682608409,200.0,0.00014847,30]
[329801871,1718682608476,200.0,0.00014847,30]
[329801872,1718682608529,200.0,0.00014847,30]
[329801883,1718682632247,-154.99490695,0.00014779,2]
[329801884,1718682632257,-154.99490695,0.00014798,2]
[329801885,1718682632267,-99.13164714,0.00014879,2]
[329801886,1718682632279,-51.81835286,0.00014879,2]
[329801887,1718682632290,-250.0,0.00014879,2]
[329801888,1718682632303,-250.0,0.00014879,2]
[329801889,1718682632312,-1301.15278949,0.00014897,2]
[329801891,1718682632325,-514.29235671,0.00014897,2]
[329801897,1718682632413,-2603.71306986,0.00014897,2]
[329801899,1718682632426,-943.26744094,0.00014897,2]
[329801900,1718682632439,-574.32971375,0.00014897,2]
[329801901,1718682632450,-1457.92040422,0.00014897,2]
[329801902,1718682632460,-316.52419348,0.00014898,2]
[329801903,1718682632470,-2812.33801406,0.00014898,2]
[329801904,1718682632480,-1654.8612301,0.00014898,2]
[329801905,1718682632578,-331.5,0.00014898,2]
[329801906,1718682632590,-297.86256585,0.00014898,2]
[329801907,1718682632602,-2400.0,0.00014898,2]
[329801908,1718682632618,-827.70960405,0.00014898,2]
[329801909,1718682632629,-308.7402,0.00014898,2]
[329801910,1718682632639,-20291.64003114,0.00014922,2]
[329801911,1718682632648,-150.0,0.00014959,2]
[329801912,1718682632658,-10503.37273456,0.00014988,2]
[329801913,1718682632668,-2072.73615539,0.00014989,2]
[329801914,1718682632678,-4621.42639349,0.00014991,2]
[329801915,1718682632688,-155.0,0.00014997,2]
[329801916,1718682632698,-593.21928936,0.00014998,2]
[329801917,1718682632708,-5039.33229086,0.00014998,2]
[329801918,1718682632721,-386.63737113,0.00014998,2]
[329801919,1718682632732,-32459.11787884,0.00014998,2]
[329801921,1718682632744,-3880.42848261,0.00014998,2]
[329801923,1718682632756,-10519.36902647,0.00014998,2]
[329801925,1718682632769,-22592.65279853,0.00014998,2]
[329801943,1718682640250,-534.67786524,0.00014998,2]
[329801944,1718682640263,-269.49698536,0.00014998,2]
[329801945,1718682640275,-421.399227,0.00014998,2]
[329801946,1718682640291,-548.096,0.00014998,2]
[329801947,1718682640303,-264.54053448,0.00014998,2]
[329801948,1718682640452,-2644.17619719,0.00014998,2]
[329801949,1718682640464,-2198.40480559,0.00014998,2]
[329801950,1718682640477,-4301.317335,0.00014998,2]
[329801951,1718682640489,-1169.55400002,0.00014998,2]
[329801952,1718682640500,-1536.64785592,0.00014998,2]
[329801953,1718682640513,-332.57131004,0.00014998,2]
[329801954,1718682640526,-6081.73346951,0.00014998,2]
[329801955,1718682640538,-3265.55644233,0.00014998,2]
[329801956,1718682640550,-4209.38284784,0.00014998,2]
[329801957,1718682640565,-2067.86079862,0.00014998,2]
[329801958,1718682640577,-813.90015,0.00014998,2]
[329801959,1718682640794,-500.0,0.00014998,2]
[329801960,1718682641282,-268924.84638607,0.00014998,2]
[329801961,1718682641292,-2752.73,0.00014998,2]
[329801962,1718682641306,-157.14674514,0.00014999,2]
[329801963,1718682641316,-2812.33801402,0.0001616,2]
[329801964,1718682641326,-185.99,0.00016883,2]
[329801965,1718682641336,-482.17,0.00016892,2]
[329801966,1718682641346,-2886.8806,0.00017061,2]
[329801967,1718682641356,-433.31504304,0.00017258,2]
[329801968,1718682641366,-159.80127543,0.00017258,2]
[329801969,1718682641379,-5711.7132444,0.00017259,2]
[329801970,1718682641389,-2812.33801402,0.00017423,2]
[329801971,1718682641399,-150.95,0.00017619,2]
[329801972,1718682641409,-2812.33801402,0.00018685,2]
[329801973,1718682641418,-194.1,0.00018895,2]
[329801974,1718682641428,-482.17,0.00019156,2]
[329801975,1718682641438,-316.52419346,0.00019454,2]
[329801976,1718682641450,-165.11,0.00019479,2]
[329801977,1718682641460,-898.88,0.00019497,2]
[329801978,1718682641469,-442.0,0.00019891,2]
[329801979,1718682641479,-151.0,0.00019912,2]
[329801980,1718682641489,-2812.33801402,0.00019948,2]
[329801981,1718682641499,-165.11,0.00019986,2]
[329801982,1718682641509,-188.24706994,0.0002,2]
[329801983,1718682641519,-155.0,0.0002,2]
[329801984,1718682641529,-866.35381295,0.0002,2]
[329801985,1718682641539,-226.85225071,0.000201,2]
[329801986,1718682641549,-151.0,0.00020324,2]
[329801987,1718682641558,-150.95,0.00020359,2]
[329801988,1718682641568,-165.11,0.00020494,2]
[329801989,1718682641577,-151.0,0.00020737,2]
[329801990,1718682641587,-644.0,0.000208,5]
[329801991,1718682641596,-202.223755,0.00021,2]
[329801992,1718682641606,-10000.0,0.0002107,2]
[329801993,1718682641616,-151.0,0.00021149,2]
[329801994,1718682641626,-2812.33801402,0.0002121,2]
[329801995,1718682641636,-191.482643,0.0002137,2]
[329801996,1718682641646,-156.15,0.0002137,2]
[329801997,1718682641655,-482.17,0.0002142,2]
[329801998,1718682641665,-155.0,0.000215,2]
[329801999,1718682641675,-151.0,0.00021562,2]
[329802000,1718682641685,-7500.0,0.00021817,2]
[329802001,1718682641697,-164.51180693,0.00021817,2]
[329802003,1718682641706,-168.68431456,0.00021817,2]
[329802004,1718682641716,-235.32704854,0.00021915,2]
[329802006,1718682641726,-458.93168001,0.00021915,2]
[329802008,1718682641735,-332.36808614,0.00021916,2]
[329802010,1718682641745,-171.68240865,0.00021916,2]
[329802012,1718682641755,-1030.15264198,0.00021916,2]
[329802014,1718682641765,-442.08426407,0.00021916,2]
[329802016,1718682641775,-277.97820025,0.00021916,2]
[329802018,1718682641784,-878.0,0.00021917,2]
[329802020,1718682641794,-13363.1208631,0.00021917,2]
[329802022,1718682641804,-372.38376165,0.00021917,2]
[329802024,1718682641814,-254.23820705,0.00021917,2]
[329802026,1718682641823,-14887.76049432,0.00021917,2]
[329802028,1718682641833,-500.0,0.00021917,2]
[329802030,1718682641843,-500.0,0.00021917,2]
[329802032,1718682641853,-500.0,0.00021917,2]
[329802034,1718682641863,-500.0,0.00021917,2]
[329802036,1718682641872,-500.0,0.00021917,2]
[329802037,1718682641882,-500.0,0.00021917,2]
[329802038,1718682641891,-500.0,0.00021917,2]
[329802039,1718682641901,-500.0,0.00021917,2]
[329802040,1718682641910,-497.27314759,0.00021917,2]
[329802041,1718682641919,-500.0,0.00021917,2]
[329802042,1718682641929,-500.0,0.00021917,2]
[329802043,1718682641938,-500.0,0.00021917,2]
[329802044,1718682641950,-240.3995645,0.00021917,2]
[329802045,1718682641959,-500.0,0.00021917,2]
[329802046,1718682641968,-500.0,0.00021917,2]
[329802047,1718682641977,-500.0,0.00021917,2]
[329802048,1718682641987,-534.18107614,0.00021917,2]
[329802049,1718682641996,-500.0,0.00021917,2]
[329802050,1718682642006,-500.0,0.00021917,2]
[329802051,1718682642015,-500.0,0.00021917,2]
[329802052,1718682642024,-500.0,0.00021917,2]
[329802053,1718682642034,-500.0,0.00021917,2]
[329802054,1718682642043,-500.0,0.00021917,2]
[329802055,1718682642053,-500.0,0.00021917,2]
[329802056,1718682642062,-500.0,0.00021917,2]
[329802057,1718682642072,-500.0,0.00021917,2]
[329802058,1718682642081,-500.0,0.00021917,2]
[329802059,1718682642091,-500.0,0.00021917,2]